[Event "Titled Tuesday Blitz August 24 2021"]
[White "Drozdowski, Kacper"]
[Black "Reprintsev, Alexander"]
[WhiteFideId "1136720"]
[BlackFideId "14100541"]
[WhiteElo "2507"]
[BlackElo "2126"]
[Result "1-0"]
[Round "01"]
[TimeControl "180+1"]
[Date "2021.08.24"]
[WhiteClock "0:00:13"]
[BlackClock "0:00:12"]

1. e4 {[%clk 0:03:00]}  d5 {[%clk 0:02:51]} 2. exd5 {[%clk 0:03:00]}  Qxd5 {[%clk 0:02:50]} 3. Nf3 {[%clk 0:03:00]}  Bg4 {[%clk 0:02:48]} 4. Be2 {[%clk 0:03:00]}  Nc6 {[%clk 0:02:48]} 5. Nc3 {[%clk 0:02:59]}  Qd6 {[%clk 0:02:46]} 6. h3 {[%clk 0:02:59]}  Bh5 {[%clk 0:02:46]} 7. O-O {[%clk 0:02:41]}  O-O-O {[%clk 0:02:45]} 8. d4 {[%clk 0:02:31]}  Nf6 {[%clk 0:02:30]} 9. Be3 {[%clk 0:02:27]}  h6 {[%clk 0:02:28]} 10. Nb5 {[%clk 0:02:23]}  Qd7 {[%clk 0:02:26]} 11. c4 {[%clk 0:02:23]}  e6 {[%clk 0:02:21]} 12. Ne5 {[%clk 0:02:04]}  Nxe5 {[%clk 0:02:10]} 13. dxe5 {[%clk 0:02:04]}  Qxd1 {[%clk 0:02:07]} 14. Bxd1 {[%clk 0:01:58]}  Bxd1 {[%clk 0:02:06]} 15. Raxd1 {[%clk 0:01:55]}  Nd7 {[%clk 0:02:02]} 16. Nxa7+ {[%clk 0:01:53]}  Kb8 {[%clk 0:02:02]} 17. Nb5 {[%clk 0:01:52]}  Be7 {[%clk 0:02:00]} 18. f4 {[%clk 0:01:51]}  f5 {[%clk 0:01:58]} 19. exf6 {[%clk 0:01:49]}  gxf6 {[%clk 0:01:57]} 20. b3 {[%clk 0:01:43]}  Bc5 {[%clk 0:01:56]} 21. Kf2 {[%clk 0:01:38]}  Rhg8 {[%clk 0:01:52]} 22. g4 {[%clk 0:01:36]}  h5 {[%clk 0:01:50]} 23. Rg1 {[%clk 0:01:18]}  hxg4 {[%clk 0:01:48]} 24. hxg4 {[%clk 0:01:19]}  c6 {[%clk 0:01:45]} 25. Nd4 {[%clk 0:01:18]}  e5 {[%clk 0:01:24]} 26. Ne6 {[%clk 0:01:15]}  Bxe3+ {[%clk 0:01:24]} 27. Kxe3 {[%clk 0:01:16]}  exf4+ {[%clk 0:01:24]} 28. Kxf4 {[%clk 0:01:14]}  Rde8 {[%clk 0:01:22]} 29. Rxd7 {[%clk 0:00:57]}  Rxe6 {[%clk 0:01:22]} 30. Rh1 {[%clk 0:00:55]}  Re2 {[%clk 0:01:13]} 31. Rhh7 {[%clk 0:00:55]}  Rf2+ {[%clk 0:01:08]} 32. Kg3 {[%clk 0:00:55]}  Rxa2 {[%clk 0:01:08]} 33. Rxb7+ {[%clk 0:00:55]}  Ka8 {[%clk 0:01:09]} 34. Rbf7 {[%clk 0:00:36]}  Rb2 {[%clk 0:01:05]} 35. Rxf6 {[%clk 0:00:36]}  Rxb3+ {[%clk 0:01:05]} 36. Kf4 {[%clk 0:00:36]}  Rb1 {[%clk 0:00:57]} 37. g5 {[%clk 0:00:31]}  Rf1+ {[%clk 0:00:53]} 38. Ke4 {[%clk 0:00:31]}  Rg1 {[%clk 0:00:44]} 39. Rxc6 {[%clk 0:00:21]}  R1xg5 {[%clk 0:00:42]} 40. Rcc7 {[%clk 0:00:21]}  Re8+ {[%clk 0:00:40]} 41. Kd4 {[%clk 0:00:21]}  Rd8+ {[%clk 0:00:40]} 42. Kc3 {[%clk 0:00:22]}  Ra5 {[%clk 0:00:40]} 43. Kb4 {[%clk 0:00:21]}  Ra1 {[%clk 0:00:40]} 44. Rcd7 {[%clk 0:00:17]}  Re8 {[%clk 0:00:37]} 45. Kc5 {[%clk 0:00:16]}  Rf8 {[%clk 0:00:33]} 46. Rhf7 {[%clk 0:00:15]}  Rg8 {[%clk 0:00:32]} 47. Rg7 {[%clk 0:00:16]}  Rf8 {[%clk 0:00:32]} 48. Rge7 {[%clk 0:00:16]}  Rg8 {[%clk 0:00:32]} 49. Kc6 {[%clk 0:00:16]}  Ra6+ {[%clk 0:00:30]} 50. Kb5 {[%clk 0:00:16]}  Ra1 {[%clk 0:00:31]} 51. c5 {[%clk 0:00:16]}  Rb8+ {[%clk 0:00:29]} 52. Kc6 {[%clk 0:00:17]}  Ra6+ {[%clk 0:00:29]} 53. Kd5 {[%clk 0:00:17]}  Ra1 {[%clk 0:00:27]} 54. c6 {[%clk 0:00:18]}  Rd1+ {[%clk 0:00:24]} 55. Kc5 {[%clk 0:00:18]}  Rc1+ {[%clk 0:00:24]} 56. Kd6 {[%clk 0:00:18]}  Rd1+ {[%clk 0:00:24]} 57. Kc7 {[%clk 0:00:18]}  Ra1 {[%clk 0:00:23]} 58. Re3 {[%clk 0:00:14]}  Rh8 {[%clk 0:00:20]} 59. Re5 {[%clk 0:00:14]}  Ra2 {[%clk 0:00:19]} 60. Rd8+ {[%clk 0:00:13]}  Rxd8 {[%clk 0:00:18]} 61. Kxd8 {[%clk 0:00:14]}  Rh2 {[%clk 0:00:15]} 62. c7 {[%clk 0:00:13]}  Rd2+ {[%clk 0:00:12]} 63. Kc8 {[%clk 0:00:13]}  Ka7 {[%clk 0:00:13]} 64. Ra5+ {[%clk 0:00:13]}  Kb6 {[%clk 0:00:13]} 65. Ra1 {[%clk 0:00:13]}  Rc2 {[%clk 0:00:12]} 66. Rb1+ {[%clk 0:00:14]}  Kc6 {[%clk 0:00:12]} 67. Kb8 {[%clk 0:00:13]}  Kd7 {[%clk 0:00:12]} 68. Rd1+ {[%clk 0:00:13]}  Ke8 {[%clk 0:00:12]} 69. c8=Q+ {[%clk 0:00:13]} 1-0


[Site "https://www.chess.com"]

[Event "Titled Tuesday Blitz August 24 2021"]
[White "Erdogmus, Yagiz Kaan"]
[Black "Petrovskyi, Vadym"]
[WhiteFideId "44599790"]
[BlackFideId "14165210"]
[WhiteElo "1783"]
[BlackElo "2334"]
[Result "0-1"]
[Round "01"]
[TimeControl "180+1"]
[Date "2021.08.24"]
[WhiteClock "0:00:12"]
[BlackClock "0:00:13"]

1. e4 {[%clk 0:03:00]}  c5 {[%clk 0:02:56]} 2. Nf3 {[%clk 0:03:00]}  d6 {[%clk 0:02:56]} 3. Bb5+ {[%clk 0:03:00]}  Nc6 {[%clk 0:02:56]} 4. Bxc6+ {[%clk 0:02:59]}  bxc6 {[%clk 0:02:56]} 5. O-O {[%clk 0:03:00]}  d5 {[%clk 0:02:55]} 6. d3 {[%clk 0:02:51]}  g6 {[%clk 0:02:54]} 7. Be3 {[%clk 0:02:45]}  Bg7 {[%clk 0:02:54]} 8. e5 {[%clk 0:02:36]}  Bg4 {[%clk 0:02:51]} 9. Bxc5 {[%clk 0:02:30]}  Bxe5 {[%clk 0:02:49]} 10. d4 {[%clk 0:02:28]}  Bg7 {[%clk 0:02:47]} 11. Re1 {[%clk 0:02:20]}  e6 {[%clk 0:02:40]} 12. c4 {[%clk 0:02:10]}  Bxf3 {[%clk 0:02:29]} 13. Qxf3 {[%clk 0:02:07]}  Ne7 {[%clk 0:02:29]} 14. Nc3 {[%clk 0:01:55]}  O-O {[%clk 0:02:16]} 15. Rad1 {[%clk 0:01:51]}  Re8 {[%clk 0:02:13]} 16. b3 {[%clk 0:01:48]}  h5 {[%clk 0:02:07]} 17. Ne2 {[%clk 0:01:42]}  Nf5 {[%clk 0:02:05]} 18. Ng3 {[%clk 0:01:40]}  Nd6 {[%clk 0:01:45]} 19. Ba3 {[%clk 0:01:17]}  h4 {[%clk 0:01:41]} 20. Ne2 {[%clk 0:01:16]}  Nf5 {[%clk 0:01:39]} 21. g4 {[%clk 0:01:12]}  hxg3 {[%clk 0:01:37]} 22. hxg3 {[%clk 0:01:11]}  Qa5 {[%clk 0:01:34]} 23. b4 {[%clk 0:00:58]}  Qa6 {[%clk 0:01:20]} 24. b5 {[%clk 0:00:55]}  cxb5 {[%clk 0:01:19]} 25. cxd5 {[%clk 0:00:55]}  exd5 {[%clk 0:01:19]} 26. Bc5 {[%clk 0:00:56]}  Qxa2 {[%clk 0:01:13]} 27. Nc3 {[%clk 0:00:52]}  Qb3 {[%clk 0:01:05]} 28. Rxe8+ {[%clk 0:00:35]}  Rxe8 {[%clk 0:01:04]} 29. Rb1 {[%clk 0:00:29]}  Qc2 {[%clk 0:00:56]} 30. Rxb5 {[%clk 0:00:22]}  Bxd4 {[%clk 0:00:44]} 31. Nxd5 {[%clk 0:00:22]}  Qc4 {[%clk 0:00:22]} 32. Bxd4 {[%clk 0:00:17]}  Qxd4 {[%clk 0:00:22]} 33. Nf4 {[%clk 0:00:14]}  a6 {[%clk 0:00:18]} 34. Rb1 {[%clk 0:00:11]}  a5 {[%clk 0:00:16]} 35. Rd1 {[%clk 0:00:11]}  Qe5 {[%clk 0:00:13]} 36. Qc6 {[%clk 0:00:06]}  Rb8 {[%clk 0:00:06]} 37. Qc4 {[%clk 0:00:02]}  Nd6 {[%clk 0:00:03]} 38. Nxg6 {[%clk 0:00:01]}  Nxc4 {[%clk 0:00:03]} 39. Nxe5 {[%clk 0:00:02]}  Nxe5 {[%clk 0:00:04]} 40. Rd5 {[%clk 0:00:02]}  Nc6 {[%clk 0:00:04]} 41. Kg2 {[%clk 0:00:02]}  Ra8 {[%clk 0:00:04]} 42. Rc5 {[%clk 0:00:03]}  Ra6 {[%clk 0:00:05]} 43. Rg5+ {[%clk 0:00:02]}  Kf8 {[%clk 0:00:05]} 44. Rb5 {[%clk 0:00:02]}  a4 {[%clk 0:00:05]} 45. Rb1 {[%clk 0:00:03]}  a3 {[%clk 0:00:06]} 46. Ra1 {[%clk 0:00:04]}  a2 {[%clk 0:00:06]} 47. Kf3 {[%clk 0:00:05]}  Nb4 {[%clk 0:00:07]} 48. Ke2 {[%clk 0:00:05]}  Nc2 {[%clk 0:00:07]} 49. Kd2 {[%clk 0:00:06]}  Nxa1 {[%clk 0:00:07]} 50. Kc3 {[%clk 0:00:07]}  Nb3 {[%clk 0:00:08]} 51. Kxb3 {[%clk 0:00:07]}  a1=Q {[%clk 0:00:09]} 52. Kc4 {[%clk 0:00:08]}  Rb6 {[%clk 0:00:09]} 53. Kd5 {[%clk 0:00:09]}  Qa7 {[%clk 0:00:10]} 54. Ke4 {[%clk 0:00:09]}  Qa5 {[%clk 0:00:10]} 55. Kf4 {[%clk 0:00:10]}  Rb4+ {[%clk 0:00:11]} 56. Kf3 {[%clk 0:00:11]}  Qa3+ {[%clk 0:00:12]} 57. Kg2 {[%clk 0:00:12]}  Rb2 {[%clk 0:00:12]} 58. Kh2 {[%clk 0:00:12]}  Qe3 {[%clk 0:00:13]} 59. Kh3 {[%clk 0:00:13]}  Rxf2 {[%clk 0:00:13]} 60. Kg4 {[%clk 0:00:12]}  Qe4+ {[%clk 0:00:14]} 61. Kg5 {[%clk 0:00:13]}  Rf5+ {[%clk 0:00:13]} 62. Kh6 {[%clk 0:00:12]}  Qh1# {[%clk 0:00:13]} 0-1


[Site "https://www.chess.com"]

[Event "Titled Tuesday Blitz August 24 2021"]
[White "Estrada Nieto, Julian"]
[Black "Kadric, Denis"]
[WhiteFideId "5101018"]
[BlackFideId "14403803"]
[WhiteElo "2270"]
[BlackElo "2449"]
[Result "0-1"]
[Round "01"]
[TimeControl "180+1"]
[Date "2021.08.24"]
[WhiteClock "0:00:08"]
[BlackClock "0:02:24"]

1. e4 {[%clk 0:03:00]}  d6 {[%clk 0:03:00]} 2. d4 {[%clk 0:02:59]}  Nf6 {[%clk 0:03:00]} 3. Nc3 {[%clk 0:03:00]}  e5 {[%clk 0:03:01]} 4. Nf3 {[%clk 0:03:00]}  Nbd7 {[%clk 0:03:01]} 5. Bc4 {[%clk 0:02:55]}  Be7 {[%clk 0:03:00]} 6. O-O {[%clk 0:02:53]}  O-O {[%clk 0:03:00]} 7. Re1 {[%clk 0:02:52]}  c6 {[%clk 0:03:01]} 8. a4 {[%clk 0:02:52]}  exd4 {[%clk 0:03:02]} 9. Qxd4 {[%clk 0:02:48]}  Ne5 {[%clk 0:03:03]} 10. Nxe5 {[%clk 0:02:17]}  dxe5 {[%clk 0:03:03]} 11. Qxe5 {[%clk 0:01:46]}  Ng4 {[%clk 0:03:03]} 12. Qf4 {[%clk 0:01:27]}  Bd6 {[%clk 0:03:02]} 13. e5 {[%clk 0:01:26]}  Nxe5 {[%clk 0:03:03]} 14. Bb3 {[%clk 0:00:44]}  Nd3 {[%clk 0:02:59]} 15. Qe3 {[%clk 0:00:40]}  Nxe1 {[%clk 0:03:00]} 16. Qxe1 {[%clk 0:00:41]}  Re8 {[%clk 0:03:00]} 17. Be3 {[%clk 0:00:41]}  Be6 {[%clk 0:02:40]} 18. Rd1 {[%clk 0:00:39]}  Bxb3 {[%clk 0:02:39]} 19. cxb3 {[%clk 0:00:38]}  Qc7 {[%clk 0:02:39]} 20. h3 {[%clk 0:00:37]}  Bc5 {[%clk 0:02:38]} 21. Rd3 {[%clk 0:00:31]}  Bxe3 {[%clk 0:02:28]} 22. Rxe3 {[%clk 0:00:31]}  Rxe3 {[%clk 0:02:28]} 23. Qxe3 {[%clk 0:00:31]}  Qd7 {[%clk 0:02:29]} 24. a5 {[%clk 0:00:25]}  a6 {[%clk 0:02:28]} 25. Ne4 {[%clk 0:00:17]}  Re8 {[%clk 0:02:28]} 26. Qf4 {[%clk 0:00:11]}  Qd1+ {[%clk 0:02:23]} 27. Kh2 {[%clk 0:00:10]}  Qd4 {[%clk 0:02:23]} 28. f3 {[%clk 0:00:08]}  Qe5 {[%clk 0:02:24]} 0-1


[Site "https://www.chess.com"]

[Event "Titled Tuesday Blitz August 24 2021"]
[White "Eswaran, Ashritha"]
[Black "Sjugirov, Sanan"]
[WhiteFideId "2080788"]
[BlackFideId "4189302"]
[WhiteElo "2432"]
[BlackElo "2472"]
[Result "0-1"]
[Round "01"]
[TimeControl "180+1"]
[Date "2021.08.24"]
[WhiteClock "0:01:38"]
[BlackClock "0:01:48"]

1. e4 {[%clk 0:03:00]}  c5 {[%clk 0:02:59]} 2. Nf3 {[%clk 0:03:00]}  Nf6 {[%clk 0:02:58]} 3. Nc3 {[%clk 0:02:59]}  d6 {[%clk 0:02:57]} 4. d4 {[%clk 0:02:58]}  cxd4 {[%clk 0:02:58]} 5. Nxd4 {[%clk 0:02:58]}  a6 {[%clk 0:02:59]} 6. Be3 {[%clk 0:02:58]}  e5 {[%clk 0:02:58]} 7. Nf3 {[%clk 0:02:58]}  Qc7 {[%clk 0:02:55]} 8. a4 {[%clk 0:02:58]}  Be7 {[%clk 0:02:54]} 9. a5 {[%clk 0:02:58]}  O-O {[%clk 0:02:53]} 10. Be2 {[%clk 0:02:58]}  Be6 {[%clk 0:02:50]} 11. O-O {[%clk 0:02:58]}  h6 {[%clk 0:02:47]} 12. Qd2 {[%clk 0:02:58]}  Nbd7 {[%clk 0:02:43]} 13. Rfd1 {[%clk 0:02:58]}  Rac8 {[%clk 0:02:40]} 14. Bf1 {[%clk 0:02:53]}  Bg4 {[%clk 0:02:35]} 15. Be2 {[%clk 0:02:53]}  Rfd8 {[%clk 0:02:34]} 16. h3 {[%clk 0:02:53]}  Be6 {[%clk 0:02:33]} 17. Ne1 {[%clk 0:02:52]}  Nc5 {[%clk 0:02:31]} 18. Bf3 {[%clk 0:02:52]}  Qc6 {[%clk 0:02:27]} 19. Nd5 {[%clk 0:02:49]}  Bxd5 {[%clk 0:02:27]} 20. exd5 {[%clk 0:02:49]}  Qc7 {[%clk 0:02:27]} 21. b4 {[%clk 0:02:39]}  Nce4 {[%clk 0:02:19]} 22. Bxe4 {[%clk 0:02:30]}  Nxe4 {[%clk 0:02:19]} 23. Qd3 {[%clk 0:02:30]}  Qc4 {[%clk 0:02:18]} 24. Bb6 {[%clk 0:02:26]}  Re8 {[%clk 0:02:17]} 25. Ra4 {[%clk 0:02:12]}  Nc3 {[%clk 0:02:12]} 26. Qxc4 {[%clk 0:02:01]}  Rxc4 {[%clk 0:02:13]} 27. Rda1 {[%clk 0:02:02]}  Nxa4 {[%clk 0:02:11]} 28. Rxa4 {[%clk 0:02:02]}  e4 {[%clk 0:02:09]} 29. Kf1 {[%clk 0:01:53]}  Bf6 {[%clk 0:02:08]} 30. Ke2 {[%clk 0:01:50]}  Bc3 {[%clk 0:02:07]} 31. Ra2 {[%clk 0:01:51]}  Rxb4 {[%clk 0:02:04]} 32. g3 {[%clk 0:01:51]}  Rc8 {[%clk 0:01:55]} 33. Ng2 {[%clk 0:01:51]}  Rb2 {[%clk 0:01:54]} 34. Rxb2 {[%clk 0:01:50]}  Bxb2 {[%clk 0:01:55]} 35. Ne3 {[%clk 0:01:50]}  Bc1 {[%clk 0:01:52]} 36. Kd1 {[%clk 0:01:50]}  Bxe3 {[%clk 0:01:52]} 37. fxe3 {[%clk 0:01:51]}  f5 {[%clk 0:01:50]} 38. Kd2 {[%clk 0:01:50]}  Kf7 {[%clk 0:01:50]} 39. Bd4 {[%clk 0:01:47]}  g5 {[%clk 0:01:50]} 40. h4 {[%clk 0:01:44]}  Kg6 {[%clk 0:01:49]} 41. Kc1 {[%clk 0:01:42]}  Kh5 {[%clk 0:01:48]} 42. hxg5 {[%clk 0:01:41]}  hxg5 {[%clk 0:01:49]} 43. Bf6 {[%clk 0:01:41]}  Rc5 {[%clk 0:01:49]} 44. Be7 {[%clk 0:01:38]}  Rxd5 {[%clk 0:01:49]} 45. c4 {[%clk 0:01:39]}  Rc5 {[%clk 0:01:47]} 46. Bxd6 {[%clk 0:01:39]}  Rxc4+ {[%clk 0:01:47]} 47. Kb2 {[%clk 0:01:39]}  Kg4 {[%clk 0:01:48]} 48. Kb3 {[%clk 0:01:39]}  Rc6 {[%clk 0:01:48]} 49. Be5 {[%clk 0:01:39]}  Kf3 {[%clk 0:01:48]} 50. Kb4 {[%clk 0:01:38]}  Kxe3 {[%clk 0:01:48]} 0-1


[Site "https://www.chess.com"]

[Event "Titled Tuesday Blitz August 24 2021"]
[White "Farahat, Ali"]
[Black "Dang, Hoang Son"]
[WhiteFideId "10600507"]
[BlackFideId "12402435"]
[WhiteElo "2321"]
[BlackElo "2248"]
[Result "1-0"]
[Round "01"]
[TimeControl "180+1"]
[Date "2021.08.24"]
[WhiteClock "0:01:04"]
[BlackClock "0:00:31"]

1. e4 {[%clk 0:03:00]}  g6 {[%clk 0:02:58]} 2. d4 {[%clk 0:03:00]}  Bg7 {[%clk 0:02:57]} 3. Nc3 {[%clk 0:03:01]}  a6 {[%clk 0:02:57]} 4. Nf3 {[%clk 0:02:57]}  d6 {[%clk 0:02:57]} 5. Bd3 {[%clk 0:02:56]}  Nf6 {[%clk 0:02:57]} 6. Ne2 {[%clk 0:02:54]}  O-O {[%clk 0:02:57]} 7. Ng3 {[%clk 0:02:52]}  Bg4 {[%clk 0:02:53]} 8. h3 {[%clk 0:02:52]}  Bxf3 {[%clk 0:02:53]} 9. Qxf3 {[%clk 0:02:53]}  Nc6 {[%clk 0:02:50]} 10. c3 {[%clk 0:02:53]}  e5 {[%clk 0:02:45]} 11. d5 {[%clk 0:02:53]}  Ne7 {[%clk 0:02:45]} 12. Bg5 {[%clk 0:02:53]}  Nd7 {[%clk 0:02:46]} 13. h4 {[%clk 0:02:53]}  f6 {[%clk 0:02:45]} 14. Bd2 {[%clk 0:02:48]}  f5 {[%clk 0:02:44]} 15. h5 {[%clk 0:02:46]}  f4 {[%clk 0:02:44]} 16. hxg6 {[%clk 0:02:39]}  fxg3 {[%clk 0:02:24]} 17. gxh7+ {[%clk 0:02:39]}  Kh8 {[%clk 0:02:22]} 18. Qxg3 {[%clk 0:02:39]}  Qe8 {[%clk 0:02:17]} 19. Bg5 {[%clk 0:02:35]}  Ng6 {[%clk 0:02:10]} 20. O-O-O {[%clk 0:02:32]}  Nf4 {[%clk 0:02:09]} 21. Kb1 {[%clk 0:02:30]}  Nc5 {[%clk 0:02:03]} 22. Bc2 {[%clk 0:02:28]}  Qf7 {[%clk 0:01:58]} 23. f3 {[%clk 0:02:18]}  b5 {[%clk 0:01:57]} 24. Rh4 {[%clk 0:02:15]}  a5 {[%clk 0:01:55]} 25. Rdh1 {[%clk 0:02:14]}  b4 {[%clk 0:01:54]} 26. cxb4 {[%clk 0:01:54]}  axb4 {[%clk 0:01:53]} 27. Rg4 {[%clk 0:01:55]}  Ne2 {[%clk 0:01:33]} 28. Qh4 {[%clk 0:01:49]}  Nd4 {[%clk 0:01:29]} 29. Bh6 {[%clk 0:01:22]}  Bf6 {[%clk 0:01:26]} 30. Bg5 {[%clk 0:01:14]}  Qe7 {[%clk 0:00:29]} 31. Bxf6+ {[%clk 0:01:10]}  Rxf6 {[%clk 0:00:30]} 32. Rg8+ {[%clk 0:01:06]}  Rxg8 {[%clk 0:00:30]} 33. hxg8=Q+ {[%clk 0:01:06]}  Kxg8 {[%clk 0:00:31]} 34. Qh8+ {[%clk 0:01:06]}  Kf7 {[%clk 0:00:31]} 35. Rh7+ {[%clk 0:01:05]}  Kg6 {[%clk 0:00:31]} 36. Qg8+ {[%clk 0:01:04]} 1-0


[Site "https://www.chess.com"]

[Event "Titled Tuesday Blitz August 24 2021"]
[White "Grachev, Boris"]
[Black "Do Nascimento,Christian Almeida"]
[WhiteFideId "4129199"]
[BlackFideId "2143801"]
[WhiteElo "2580"]
[BlackElo "2083"]
[Result "0-1"]
[Round "01"]
[TimeControl "180+1"]
[Date "2021.08.24"]
[WhiteClock "0:00:02"]
[BlackClock "0:00:03"]

1. d4 {[%clk 0:03:00]}  Nf6 {[%clk 0:02:58]} 2. Bf4 {[%clk 0:03:00]}  d5 {[%clk 0:02:57]} 3. e3 {[%clk 0:03:00]}  g6 {[%clk 0:02:51]} 4. Nd2 {[%clk 0:02:53]}  Bg7 {[%clk 0:02:50]} 5. Ngf3 {[%clk 0:02:51]}  O-O {[%clk 0:02:50]} 6. c3 {[%clk 0:02:52]}  c5 {[%clk 0:02:50]} 7. dxc5 {[%clk 0:02:51]}  a5 {[%clk 0:02:49]} 8. a4 {[%clk 0:02:51]}  Nc6 {[%clk 0:02:48]} 9. h3 {[%clk 0:02:48]}  Re8 {[%clk 0:02:48]} 10. Bb5 {[%clk 0:02:47]}  Bd7 {[%clk 0:02:47]} 11. O-O {[%clk 0:02:44]}  e5 {[%clk 0:02:46]} 12. Bxc6 {[%clk 0:02:42]}  exf4 {[%clk 0:02:46]} 13. Bxb7 {[%clk 0:02:40]}  fxe3 {[%clk 0:02:44]} 14. Bxa8 {[%clk 0:02:33]}  e2 {[%clk 0:02:43]} 15. Qb3 {[%clk 0:01:58]}  exf1=Q+ {[%clk 0:02:38]} 16. Rxf1 {[%clk 0:01:59]}  Qxa8 {[%clk 0:02:36]} 17. Nd4 {[%clk 0:01:59]}  Rb8 {[%clk 0:02:32]} 18. Qa3 {[%clk 0:01:58]}  Bf8 {[%clk 0:02:31]} 19. Ra1 {[%clk 0:01:51]}  Ne4 {[%clk 0:02:27]} 20. Nxe4 {[%clk 0:01:47]}  dxe4 {[%clk 0:02:26]} 21. b4 {[%clk 0:01:44]}  axb4 {[%clk 0:02:06]} 22. cxb4 {[%clk 0:01:45]}  Bg7 {[%clk 0:02:07]} 23. Nc2 {[%clk 0:01:16]}  Bxa1 {[%clk 0:02:05]} 24. Qxa1 {[%clk 0:01:17]}  Qxa4 {[%clk 0:02:03]} 25. Qc3 {[%clk 0:01:17]}  Be6 {[%clk 0:01:53]} 26. g4 {[%clk 0:01:13]}  Qb3 {[%clk 0:01:43]} 27. Qe5 {[%clk 0:01:13]}  Rd8 {[%clk 0:01:14]} 28. Ne3 {[%clk 0:01:11]}  Qxb4 {[%clk 0:01:04]} 29. c6 {[%clk 0:01:01]}  Qb6 {[%clk 0:00:59]} 30. Qf6 {[%clk 0:00:48]}  Rc8 {[%clk 0:00:52]} 31. h4 {[%clk 0:00:47]}  Qxc6 {[%clk 0:00:47]} 32. h5 {[%clk 0:00:45]}  Bxg4 {[%clk 0:00:47]} 33. Qd4 {[%clk 0:00:31]}  Bxh5 {[%clk 0:00:38]} 34. Nd5 {[%clk 0:00:31]}  Qc1+ {[%clk 0:00:11]} 35. Kh2 {[%clk 0:00:28]}  Bf3 {[%clk 0:00:11]} 36. Nf6+ {[%clk 0:00:15]}  Kg7 {[%clk 0:00:10]} 37. Ne8+ {[%clk 0:00:08]}  Kf8 {[%clk 0:00:07]} 38. Qh8+ {[%clk 0:00:08]}  Ke7 {[%clk 0:00:07]} 39. Qe5+ {[%clk 0:00:09]}  Kd7 {[%clk 0:00:06]} 40. Nf6+ {[%clk 0:00:08]}  Kc6 {[%clk 0:00:07]} 41. Qd5+ {[%clk 0:00:08]}  Kc7 {[%clk 0:00:06]} 42. Qa5+ {[%clk 0:00:04]}  Kb7 {[%clk 0:00:03]} 43. Qb5+ {[%clk 0:00:04]}  Kc7 {[%clk 0:00:03]} 44. Qa5+ {[%clk 0:00:03]}  Kd6 {[%clk 0:00:03]} 45. Qd5+ {[%clk 0:00:03]}  Ke7 {[%clk 0:00:03]} 46. Qe5+ {[%clk 0:00:04]}  Kf8 {[%clk 0:00:03]} 47. Nd7+ {[%clk 0:00:02]}  Kg8 {[%clk 0:00:03]} 48. Nf6+ {[%clk 0:00:03]}  Kf8 {[%clk 0:00:03]} 49. Nd7+ {[%clk 0:00:03]}  Kg8 {[%clk 0:00:04]} 50. Nf6+ {[%clk 0:00:03]}  Kg7 {[%clk 0:00:03]} 51. Ne8+ {[%clk 0:00:02]}  Kf8 {[%clk 0:00:04]} 52. Qh8+ {[%clk 0:00:02]}  Ke7 {[%clk 0:00:04]} 53. Qe5+ {[%clk 0:00:02]}  Kd7 {[%clk 0:00:04]} 54. Nf6+ {[%clk 0:00:03]}  Kc6 {[%clk 0:00:04]} 55. Qd5+ {[%clk 0:00:02]}  Kb6 {[%clk 0:00:04]} 56. Qb3+ {[%clk 0:00:02]}  Ka5 {[%clk 0:00:03]} 57. Qd5+ {[%clk 0:00:02]}  Rc5 {[%clk 0:00:03]} 58. Qa8+ {[%clk 0:00:02]}  Kb4 {[%clk 0:00:03]} 59. Qb7+ {[%clk 0:00:02]}  Kc3 {[%clk 0:00:03]} 60. Kg3 {[%clk 0:00:02]}  Qg5+ {[%clk 0:00:03]} 61. Kh2 {[%clk 0:00:02]}  Qg2# {[%clk 0:00:03]} 0-1


[Site "https://www.chess.com"]